[Event "*** Titled Tuesday 3|2 Blitz"]
[Site "Chess.com"]
[Date "2016.07.05"]
[Round "9"]
[White "eltenedor"]
[Black "Hieronymus00"]
[Result "0-1"]
[WhiteElo "2021"]
[BlackElo "2156"]
[TimeControl "180+2"]
[EndTime "12:52:45 PDT"]
[Termination "Hieronymus00 won by resignation"]

1. c4 {[%clk 0:03:01.9]} 1... g6 {[%clk 0:03:00]} 2. g3 {[%clk 0:03:01.8]} 2...
Bg7 {[%clk 0:03:00.5]} 3. Bg2 {[%clk 0:03:03.2]} 3... d6 {[%clk 0:03:01.8]} 4.
Nc3 {[%clk 0:03:03.7]} 4... e5 {[%clk 0:03:01.9]} 5. e3 {[%clk 0:03:04.7]} 5...
f5 {[%clk 0:02:56.1]} 6. Nge2 {[%clk 0:03:05.2]} 6... Nf6 {[%clk 0:02:57]} 7.
O-O {[%clk 0:03:05.9]} 7... O-O {[%clk 0:02:57.7]} 8. d3 {[%clk 0:03:07.1]} 8...
Kh8 {[%clk 0:02:58.5]} 9. Rb1 {[%clk 0:03:03]} 9... c6 {[%clk 0:02:58.8]} 10. f4
{[%clk 0:03:03.8]} 10... Be6 {[%clk 0:02:54.5]} 11. b3 {[%clk 0:03:00.8]} 11...
Nbd7 {[%clk 0:02:53.6]} 12. Ba3 {[%clk 0:02:55.7]} 12... Qe7 {[%clk 0:02:41.9]}
13. Qd2 {[%clk 0:02:28]} 13... Rad8 {[%clk 0:02:40.3]} 14. fxe5 {[%clk 0:02:14]}
14... Nxe5 {[%clk 0:02:40.7]} 15. d4 {[%clk 0:02:11.4]} 15... Neg4 {[%clk
0:02:33.8]} 16. h3 {[%clk 0:02:09.3]} 16... Nh6 {[%clk 0:02:34.6]} 17. d5 {[%clk
0:02:05.5]} 17... cxd5 {[%clk 0:02:16.9]} 18. cxd5 {[%clk 0:01:40.6]} 18... Bg8
{[%clk 0:02:16.4]} 19. Nf4 {[%clk 0:01:15.7]} 19... Rfe8 {[%clk 0:02:14]} 20.
Rfe1 {[%clk 0:01:12]} 20... a6 {[%clk 0:02:03.2]} 21. Rbc1 {[%clk 0:01:05.9]}
21... Nh5 {[%clk 0:01:50.3]} 22. Nxh5 {[%clk 0:01:04.4]} 22... gxh5 {[%clk
0:01:51.2]} 23. e4 {[%clk 0:00:52.3]} 23... Qf6 {[%clk 0:01:45.4]} 24. Bb2
{[%clk 0:00:46.2]} 24... fxe4 {[%clk 0:01:44.2]} 25. Rxe4 {[%clk 0:00:35]} 25...
Nf5 {[%clk 0:01:40.6]} 26. Rf4 {[%clk 0:00:15.4]} 26... Qe5 {[%clk 0:01:25]} 27.
g4 {[%clk 0:00:13.2]} 27... hxg4 {[%clk 0:01:14.7]} 28. hxg4 {[%clk 0:00:15.1]}
28... Ne3 {[%clk 0:01:09.5]} 29. Nd1 {[%clk 0:00:13.1]} 29... Qxf4 {[%clk
0:01:08.3]} 30. Nxe3 {[%clk 0:00:12.2]} 30... Qxe3+ {[%clk 0:01:05.3]} 0-1

[Event "*** Titled Tuesday 3|2 Blitz"]
[Site "Chess.com"]
[Date "2016.07.05"]
[Round "9"]
[White "ftorodent"]
[Black "viditchess"]
[Result "1-0"]
[WhiteElo "2414"]
[BlackElo "2480"]
[TimeControl "180+2"]
[EndTime "12:52:59 PDT"]
[Termination "ftorodent won by resignation"]

1. d4 {[%clk 0:03:01.9]} 1... Nf6 {[%clk 0:02:59]} 2. c4 {[%clk 0:03:02.9]} 2...
e6 {[%clk 0:02:59.6]} 3. Nf3 {[%clk 0:03:03.9]} 3... d5 {[%clk 0:02:59.7]} 4.
Nc3 {[%clk 0:03:03.9]} 4... Bb4 {[%clk 0:02:54.6]} 5. Bg5 {[%clk 0:02:57.8]}
5... dxc4 {[%clk 0:02:51.9]} 6. e4 {[%clk 0:02:53.8]} 6... c5 {[%clk 0:02:49.9]}
7. dxc5 {[%clk 0:02:53.4]} 7... Qxd1+ {[%clk 0:02:48.3]} 8. Rxd1 {[%clk
0:02:54.2]} 8... Nbd7 {[%clk 0:02:38.4]} 9. Bd2 {[%clk 0:02:54.1]} 9... Nxc5
{[%clk 0:02:27.8]} 10. Bxc4 {[%clk 0:02:49.8]} 10... O-O {[%clk 0:02:25.2]} 11.
e5 {[%clk 0:02:47.4]} 11... Nfd7 {[%clk 0:02:17.1]} 12. a3 {[%clk 0:02:37.8]}
12... Bxc3 {[%clk 0:02:18.3]} 13. Bxc3 {[%clk 0:02:39]} 13... Nb6 {[%clk
0:02:20.2]} 14. Ba2 {[%clk 0:02:26.1]} 14... Bd7 {[%clk 0:02:17.5]} 15. O-O
{[%clk 0:02:07.5]} 15... Bb5 {[%clk 0:02:18]} 16. Rfe1 {[%clk 0:02:06.8]} 16...
Nba4 {[%clk 0:02:02.1]} 17. Bb4 {[%clk 0:02:02]} 17... Rfc8 {[%clk 0:01:59.3]}
18. Nd4 {[%clk 0:01:53.8]} 18... Be8 {[%clk 0:01:55.5]} 19. Re2 {[%clk
0:01:48.5]} 19... a5 {[%clk 0:01:52.7]} 20. Be1 {[%clk 0:01:48.1]} 20... Rd8
{[%clk 0:01:48.6]} 21. Rc2 {[%clk 0:01:32.4]} 21... Nd7 {[%clk 0:00:48.2]} 22.
f4 {[%clk 0:01:17.6]} 22... Rdc8 {[%clk 0:00:25.9]} 23. Rdc1 {[%clk 0:01:11.1]}
23... Rxc2 {[%clk 0:00:24.8]} 24. Rxc2 {[%clk 0:01:12.2]} 24... Nac5 {[%clk
0:00:25.5]} 25. Nb5 {[%clk 0:01:06.4]} 25... Ne4 {[%clk 0:00:21.6]} 26. Rc4
{[%clk 0:00:42.1]} 26... Ndc5 {[%clk 0:00:21.3]} 27. Nc7 {[%clk 0:00:38.8]}
27... Rc8 {[%clk 0:00:22.5]} 28. Nxe8 {[%clk 0:00:39.7]} 28... Rxe8 {[%clk
0:00:24.4]} 29. b4 {[%clk 0:00:40.8]} 29... axb4 {[%clk 0:00:20.4]} 30. axb4
{[%clk 0:00:41.8]} 30... b5 {[%clk 0:00:22]} 31. Rd4 {[%clk 0:00:42.4]} 1-0

[Event "*** Titled Tuesday 3|2 Blitz"]
[Site "Chess.com"]
[Date "2016.07.05"]
[Round "9"]
[White "rithwik2002"]
[Black "Matibar"]
[Result "1/2-1/2"]
[WhiteElo "1934"]
[BlackElo "2549"]
[TimeControl "180+2"]
[EndTime "12:53:05 PDT"]
[Termination "Game drawn by agreement"]

1. d4 {[%clk 0:03:01.9]} 1... e6 {[%clk 0:02:58.4]} 2. e4 {[%clk 0:02:57.8]}
2... d5 {[%clk 0:02:58.9]} 3. Nc3 {[%clk 0:02:57.5]} 3... Bb4 {[%clk 0:02:58.9]}
4. exd5 {[%clk 0:02:56.2]} 4... exd5 {[%clk 0:03:00.2]} 5. Bd3 {[%clk
0:02:57.2]} 5... Nc6 {[%clk 0:03:01.2]} 6. Ne2 {[%clk 0:02:55.7]} 6... Nf6
{[%clk 0:02:59.7]} 7. O-O {[%clk 0:02:54.5]} 7... O-O {[%clk 0:03:00.7]} 8. Ng3
{[%clk 0:02:52.9]} 8... Nxd4 {[%clk 0:02:53]} 9. Bxh7+ {[%clk 0:02:51.7]} 9...
Nxh7 {[%clk 0:02:50.1]} 10. Qxd4 {[%clk 0:02:49.8]} 10... Bxc3 {[%clk
0:02:47.1]} 11. Qxc3 {[%clk 0:02:51.1]} 11... c6 {[%clk 0:02:44.8]} 12. Be3
{[%clk 0:02:47.6]} 12... Qf6 {[%clk 0:02:45]} 13. Bd4 {[%clk 0:02:46.3]} 13...
Qh6 {[%clk 0:02:44.9]} 14. Rae1 {[%clk 0:02:44.9]} 14... Be6 {[%clk 0:02:41]}
15. f4 {[%clk 0:02:43.7]} 15... Rfe8 {[%clk 0:02:41.2]} 16. f5 {[%clk
0:02:41.6]} 16... Bd7 {[%clk 0:02:42.3]} 17. Rxe8+ {[%clk 0:02:34.2]} 17... Rxe8
{[%clk 0:02:44.2]} 18. Bxa7 {[%clk 0:02:26.5]} 18... Ng5 {[%clk 0:02:45.2]} 19.
Bd4 {[%clk 0:02:14.7]} 19... f6 {[%clk 0:02:45.9]} 20. Re1 {[%clk 0:02:10.5]}
20... Rxe1+ {[%clk 0:02:47.4]} 21. Qxe1 {[%clk 0:02:12.4]} 21... Qh4 {[%clk
0:02:48.9]} 22. Bf2 {[%clk 0:02:10.3]} 22... Qf4 {[%clk 0:02:48.5]} 23. Qe7
{[%clk 0:02:08.1]} 23... Bxf5 {[%clk 0:02:35]} 24. h4 {[%clk 0:01:59.7]} 24...
Nh7 {[%clk 0:02:27.2]} 25. Nxf5 {[%clk 0:01:48.4]} 25... Qxf5 {[%clk 0:02:27.1]}
26. Qe8+ {[%clk 0:01:48.3]} 26... Nf8 {[%clk 0:02:28.2]} 27. Bc5 {[%clk
0:01:49.9]} 27... Qxc2 {[%clk 0:02:26.1]} 28. Bxf8 {[%clk 0:01:37.2]} 28... Qc1+
{[%clk 0:02:25.4]} 29. Kh2 {[%clk 0:01:36.7]} 29... Qf4+ {[%clk 0:02:26.3]} 30.
Kh3 {[%clk 0:01:35.5]} 30... Qf5+ {[%clk 0:02:25.8]} 31. Kg3 {[%clk 0:01:36.7]}
31... Qd3+ {[%clk 0:02:26.9]} 32. Kh2 {[%clk 0:01:36.4]} 32... Qc4 {[%clk
0:02:20.3]} 33. Bd6+ {[%clk 0:01:29.6]} 33... Kh7 {[%clk 0:02:20.3]} 34. Qh5+
{[%clk 0:01:24.7]} 34... Kg8 {[%clk 0:02:21.4]} 35. g3 {[%clk 0:01:18]} 35...
Qxa2 {[%clk 0:02:20.8]} 36. Qe2 {[%clk 0:01:16.4]} 36... Qb1 {[%clk 0:02:17.1]}
37. g4 {[%clk 0:01:14.9]} 37... Kh7 {[%clk 0:02:13.3]} 38. h5 {[%clk 0:01:10.8]}
38... Qc1 {[%clk 0:02:04.1]} 39. Qd3+ {[%clk 0:01:08.5]} 39... Kg8 {[%clk
0:02:04.7]} 40. b4 {[%clk 0:00:57.2]} 40... Qe1 {[%clk 0:02:04.2]} 41. Bc5
{[%clk 0:00:50.3]} 41... Qh4+ {[%clk 0:02:02.4]} 42. Qh3 {[%clk 0:00:51.4]}
42... Qe1 {[%clk 0:02:03.5]} 43. Qg3 {[%clk 0:00:51.3]} 43... Qe2+ {[%clk
0:02:03.4]} 44. Kh3 {[%clk 0:00:48.9]} 44... Qf1+ {[%clk 0:02:03.1]} 45. Qg2
{[%clk 0:00:48.4]} 45... Qf4 {[%clk 0:02:01.9]} 46. Qe2 {[%clk 0:00:44.6]} 46...
Kh7 {[%clk 0:01:58.3]} 47. Qd3+ {[%clk 0:00:42.4]} 47... Kg8 {[%clk 0:01:57.3]}
48. Qe3 {[%clk 0:00:42.5]} 48... Qf1+ {[%clk 0:01:57.9]} 49. Kh4 {[%clk
0:00:43.9]} 49... Kh7 {[%clk 0:01:56.8]} 50. Kg3 {[%clk 0:00:38.9]} 1/2-1/2

[Event "*** Titled Tuesday 3|2 Blitz"]
[Site "Chess.com"]
[Date "2016.07.05"]
[Round "9"]
[White "daro94"]
[Black "Fandorine"]
[Result "1-0"]
[WhiteElo "2646"]
[BlackElo "2636"]
[TimeControl "180+2"]
[EndTime "12:53:11 PDT"]
[Termination "daro94 won by resignation"]

1. d4 {[%clk 0:03:00.6]} 1... Nf6 {[%clk 0:03:00.5]} 2. Nf3 {[%clk 0:03:00.3]}
2... b6 {[%clk 0:02:55.7]} 3. e3 {[%clk 0:02:58]} 3... Bb7 {[%clk 0:02:56.2]} 4.
Bd3 {[%clk 0:02:59.5]} 4... g6 {[%clk 0:02:57.4]} 5. O-O {[%clk 0:03:00.7]} 5...
Bg7 {[%clk 0:02:59.1]} 6. c4 {[%clk 0:03:01.8]} 6... O-O {[%clk 0:03:00.6]} 7.
Nc3 {[%clk 0:03:03.3]} 7... d5 {[%clk 0:03:02.2]} 8. cxd5 {[%clk 0:02:47.1]}
8... Nxd5 {[%clk 0:03:04.1]} 9. Nxd5 {[%clk 0:02:48.7]} 9... Qxd5 {[%clk
0:03:03.3]} 10. Qe2 {[%clk 0:02:47.1]} 10... c5 {[%clk 0:03:03.6]} 11. e4 {[%clk
0:02:45.6]} 11... Qd7 {[%clk 0:03:03]} 12. dxc5 {[%clk 0:02:43]} 12... bxc5
{[%clk 0:02:57.2]} 13. Be3 {[%clk 0:02:32.7]} 13... c4 {[%clk 0:02:53.7]} 14.
Bxc4 {[%clk 0:02:34]} 14... Bxe4 {[%clk 0:02:54.4]} 15. Ng5 {[%clk 0:02:29.1]}
15... Bd5 {[%clk 0:02:50.5]} 16. Rad1 {[%clk 0:02:18.9]} 16... Bxc4 {[%clk
0:02:51.3]} 17. Qxc4 {[%clk 0:02:20.8]} 17... Qc6 {[%clk 0:02:52.9]} 18. Qb4
{[%clk 0:02:06.4]} 18... h6 {[%clk 0:02:39.3]} 19. Nf3 {[%clk 0:02:04.4]} 19...
e5 {[%clk 0:02:40.6]} 20. Rd6 {[%clk 0:02:01.1]} 20... a5 {[%clk 0:02:26.2]} 21.
Qd2 {[%clk 0:01:58.8]} 21... Qc7 {[%clk 0:02:18.9]} 22. Rc1 {[%clk 0:02:00]}
22... Qe7 {[%clk 0:02:19.8]} 23. Bc5 {[%clk 0:01:54.8]} 23... Qe8 {[%clk
0:01:53.9]} 24. Rd5 {[%clk 0:01:47.9]} 24... Nd7 {[%clk 0:01:52.3]} 25. Rxd7
{[%clk 0:01:47.4]} 25... e4 {[%clk 0:01:52.9]} 26. Bxf8 {[%clk 0:01:47.2]} 26...
Bxf8 {[%clk 0:01:51.7]} 27. Ne1 {[%clk 0:01:34.9]} 27... Bb4 {[%clk 0:01:45.5]}
28. Qd5 {[%clk 0:01:34.4]} 28... e3 {[%clk 0:01:44.2]} 29. Nf3 {[%clk
0:01:04.5]} 29... e2 {[%clk 0:01:42.2]} 30. g3 {[%clk 0:00:55.4]} 30... Rb8
{[%clk 0:01:07.6]} 31. Kg2 {[%clk 0:00:51.9]} 31... g5 {[%clk 0:00:44.5]} 32. h3
{[%clk 0:00:51]} 32... Bf8 {[%clk 0:00:19.6]} 33. Rcc7 {[%clk 0:00:44.5]} 33...
Qe6 {[%clk 0:00:20.7]} 34. Qxe6 {[%clk 0:00:42.4]} 34... fxe6 {[%clk 0:00:22.6]}
35. Rc2 {[%clk 0:00:42.6]} 1-0

[Event "*** Titled Tuesday 3|2 Blitz"]
[Site "Chess.com"]
[Date "2016.07.05"]
[Round "9"]
[White "simplerXiao"]
[Black "StoreySniper"]
[Result "0-1"]
[WhiteElo "2326"]
[BlackElo "2351"]
[TimeControl "180+2"]
[EndTime "12:53:12 PDT"]
[Termination "StoreySniper won by checkmate"]

1. Nc3 {[%clk 0:03:01.9]} 1... g6 {[%clk 0:03:01.9]} 2. e4 {[%clk 0:03:02.2]}
2... Bg7 {[%clk 0:03:03.8]} 3. d4 {[%clk 0:03:02.4]} 3... c5 {[%clk 0:03:05.4]}
4. d5 {[%clk 0:03:00.2]} 4... Bxc3+ {[%clk 0:03:05.8]} 5. bxc3 {[%clk
0:03:01.7]} 5... Qa5 {[%clk 0:03:06.4]} 6. Qd3 {[%clk 0:03:02.2]} 6... Nf6
{[%clk 0:03:05.8]} 7. Bd2 {[%clk 0:03:02.2]} 7... b5 {[%clk 0:03:01.8]} 8. e5
{[%clk 0:03:01.7]} 8... c4 {[%clk 0:03:01.9]} 9. Qd4 {[%clk 0:03:01.8]} 9... Nh5
{[%clk 0:02:57.6]} 10. g4 {[%clk 0:02:57.6]} 10... Ng7 {[%clk 0:02:57.8]} 11. e6
{[%clk 0:02:58.9]} 11... f6 {[%clk 0:02:58.8]} 12. exd7+ {[%clk 0:02:57.7]}
12... Nxd7 {[%clk 0:02:52.8]} 13. Bg2 {[%clk 0:02:59.1]} 13... Bb7 {[%clk
0:02:35.1]} 14. Ne2 {[%clk 0:02:58]} 14... Ne5 {[%clk 0:02:30.2]} 15. O-O {[%clk
0:02:56.4]} 15... Rd8 {[%clk 0:02:30.4]} 16. h3 {[%clk 0:02:57.1]} 16... h5
{[%clk 0:02:30.1]} 17. f4 {[%clk 0:02:57.6]} 17... Nxg4 {[%clk 0:02:02.5]} 18.
hxg4 {[%clk 0:02:57.7]} 18... hxg4 {[%clk 0:02:03.9]} 19. Ng3 {[%clk 0:02:49.9]}
19... Qb6 {[%clk 0:01:44.4]} 20. Be3 {[%clk 0:02:40.5]} 20... Qxd4 {[%clk
0:01:37.6]} 21. Bxd4 {[%clk 0:02:41.7]} 21... Bxd5 {[%clk 0:01:39.2]} 22. a4
{[%clk 0:02:38]} 22... Bxg2 {[%clk 0:01:35.9]} 23. Kxg2 {[%clk 0:02:38.8]} 23...
a6 {[%clk 0:01:32.5]} 24. axb5 {[%clk 0:02:39.8]} 24... axb5 {[%clk 0:01:33.6]}
25. Ra7 {[%clk 0:02:38.5]} 25... Kf7 {[%clk 0:01:21.9]} 26. f5 {[%clk
0:02:31.2]} 26... gxf5 {[%clk 0:01:14.5]} 27. Nxf5 {[%clk 0:02:31]} 27... Nxf5
{[%clk 0:01:14.4]} 28. Rxf5 {[%clk 0:02:31.4]} 28... Kg6 {[%clk 0:00:46.7]} 29.
Rxb5 {[%clk 0:02:18.8]} 29... e5 {[%clk 0:00:47.7]} 30. Be3 {[%clk 0:02:15.3]}
30... Rh3 {[%clk 0:00:46.6]} 31. Kf2 {[%clk 0:02:03.8]} 31... Rf3+ {[%clk
0:00:43.7]} 32. Ke2 {[%clk 0:02:04.1]} 32... Rh8 {[%clk 0:00:44.7]} 33. Bc5
{[%clk 0:01:30.4]} 33... Rh2+ {[%clk 0:00:42.8]} 34. Ke1 {[%clk 0:01:31.5]}
34... Rxc2 {[%clk 0:00:30.2]} 35. Bb4 {[%clk 0:01:24.3]} 35... Re3+ {[%clk
0:00:16.1]} 36. Kd1 {[%clk 0:01:24.9]} 36... Rh2 {[%clk 0:00:16.2]} 37. Ra8
{[%clk 0:01:18.1]} 37... Rg3 {[%clk 0:00:15.3]} 38. Bc5 {[%clk 0:01:15.8]} 38...
Rgg2 {[%clk 0:00:14.2]} 39. Rg8+ {[%clk 0:01:15.6]} 39... Kf5 {[%clk 0:00:15.3]}
40. Bd4 {[%clk 0:01:13.9]} 40... Rh1+ {[%clk 0:00:15.2]} 41. Bg1 {[%clk
0:01:10.8]} 41... Rhxg1# {[%clk 0:00:16.1]} 0-1

[Event "*** Titled Tuesday 3|2 Blitz"]
[Site "Chess.com"]
[Date "2016.07.05"]
[Round "9"]
[White "Frolyanov_D"]
[Black "bilelou"]
[Result "1-0"]
[WhiteElo "2468"]
[BlackElo "2274"]
[TimeControl "180+2"]
[EndTime "12:54:09 PDT"]
[Termination "Frolyanov_D won by checkmate"]

1. e4 {[%clk 0:03:01.9]} 1... c5 {[%clk 0:01:58.8]} 2. Nf3 {[%clk 0:03:00.2]}
2... d6 {[%clk 0:01:58.4]} 3. d4 {[%clk 0:03:00.7]} 3... cxd4 {[%clk 0:01:54.3]}
4. Nxd4 {[%clk 0:03:02.6]} 4... Nf6 {[%clk 0:01:54.8]} 5. Nc3 {[%clk 0:03:03.6]}
5... a6 {[%clk 0:01:56.4]} 6. Be3 {[%clk 0:03:02.1]} 6... e5 {[%clk 0:01:54]} 7.
Nf3 {[%clk 0:03:02.8]} 7... Qc7 {[%clk 0:01:53.8]} 8. a4 {[%clk 0:03:03.3]} 8...
Be7 {[%clk 0:01:51.8]} 9. Be2 {[%clk 0:03:04.4]} 9... O-O {[%clk 0:01:51.1]} 10.
O-O {[%clk 0:03:05]} 10... b6 {[%clk 0:01:46.2]} 11. Qd3 {[%clk 0:03:04.3]}
11... Bb7 {[%clk 0:01:36.5]} 12. Nh4 {[%clk 0:03:00.4]} 12... g6 {[%clk
0:01:28.3]} 13. Bh6 {[%clk 0:02:59.3]} 13... Rc8 {[%clk 0:01:14.2]} 14. Nf5
{[%clk 0:02:59.3]} 14... Nc6 {[%clk 0:01:09.6]} 15. Nxe7+ {[%clk 0:02:55]} 15...
Qxe7 {[%clk 0:01:11.1]} 16. Bg5 {[%clk 0:02:51.4]} 16... Nd4 {[%clk 0:01:03.2]}
17. f4 {[%clk 0:02:39.6]} 17... Ne6 {[%clk 0:00:36.7]} 18. fxe5 {[%clk
0:02:38.3]} 18... Nxg5 {[%clk 0:00:37.5]} 19. exf6 {[%clk 0:02:39]} 19... Qe5
{[%clk 0:00:38]} 20. Bg4 {[%clk 0:01:41.4]} 20... Rc5 {[%clk 0:00:23.3]} 21.
Rae1 {[%clk 0:01:38.9]} 21... Re8 {[%clk 0:00:22.2]} 22. Qd2 {[%clk 0:01:15.7]}
22... h5 {[%clk 0:00:21.5]} 23. Rf5 {[%clk 0:01:12.9]} 23... hxg4 {[%clk
0:00:20.2]} 24. Rxe5 {[%clk 0:01:04.5]} 24... Rcxe5 {[%clk 0:00:21.7]} 25. Qxd6
{[%clk 0:01:03.7]} 25... R5e6 {[%clk 0:00:21.8]} 26. Qd2 {[%clk 0:01:01.6]}
26... Re5 {[%clk 0:00:21.4]} 27. Rf1 {[%clk 0:01:00.8]} 27... Kh7 {[%clk
0:00:21.7]} 28. Qf2 {[%clk 0:00:59.3]} 28... Ne6 {[%clk 0:00:20.3]} 29. Qh4+
{[%clk 0:00:57.9]} 29... Kg8 {[%clk 0:00:20.6]} 30. Qxg4 {[%clk 0:00:57.7]}
30... b5 {[%clk 0:00:21.8]} 31. axb5 {[%clk 0:00:57.7]} 31... axb5 {[%clk
0:00:23]} 32. Qg3 {[%clk 0:00:46.2]} 32... Rg5 {[%clk 0:00:20.7]} 33. Qh3 {[%clk
0:00:42.6]} 33... b4 {[%clk 0:00:20.9]} 34. Nd5 {[%clk 0:00:41.7]} 34... Bxd5
{[%clk 0:00:20.8]} 35. exd5 {[%clk 0:00:42.6]} 35... Rxd5 {[%clk 0:00:22.1]} 36.
Re1 {[%clk 0:00:43.4]} 36... Rf5 {[%clk 0:00:19.5]} 37. Qh4 {[%clk 0:00:43.7]}
37... Rc8 {[%clk 0:00:19.2]} 38. Qxb4 {[%clk 0:00:36]} 38... Rxc2 {[%clk
0:00:20.2]} 39. Qe7 {[%clk 0:00:32.7]} 39... Rff2 {[%clk 0:00:19.3]} 40. Rxe6
{[%clk 0:00:32]} 40... Rxg2+ {[%clk 0:00:19.4]} 41. Kf1 {[%clk 0:00:33.1]} 41...
fxe6 {[%clk 0:00:19.4]} 42. Qg7# {[%clk 0:00:31.9]} 1-0

[Event "*** Titled Tuesday 3|2 Blitz"]
[Site "Chess.com"]
[Date "2016.07.05"]
[Round "9"]
[White "FairChess_on_YouTube"]
[Black "Hikaru"]
[Result "0-1"]
[WhiteElo "2727"]
[BlackElo "2999"]
[TimeControl "180+2"]
[EndTime "12:54:19 PDT"]
[Termination "Hikaru won by resignation"]

1. d4 {[%clk 0:03:01.9]} 1... Nf6 {[%clk 0:02:59.5]} 2. c4 {[%clk 0:03:02.7]}
2... e6 {[%clk 0:03:01]} 3. Nf3 {[%clk 0:03:03]} 3... d5 {[%clk 0:03:02.2]} 4.
g3 {[%clk 0:03:03.4]} 4... Be7 {[%clk 0:03:03.1]} 5. Bg2 {[%clk 0:03:04.5]} 5...
O-O {[%clk 0:03:04.8]} 6. O-O {[%clk 0:03:05.6]} 6... dxc4 {[%clk 0:03:06.5]} 7.
Qa4 {[%clk 0:02:55.2]} 7... a6 {[%clk 0:03:06.2]} 8. Qxc4 {[%clk 0:02:56.3]}
8... b5 {[%clk 0:03:07.4]} 9. Qc2 {[%clk 0:02:57.3]} 9... Bb7 {[%clk 0:03:09.1]}
10. Bd2 {[%clk 0:02:58.7]} 10... Be4 {[%clk 0:03:09.8]} 11. Qc1 {[%clk 0:03:00]}
11... c6 {[%clk 0:03:11.4]} 12. Rd1 {[%clk 0:02:58.4]} 12... Nbd7 {[%clk
0:03:11.8]} 13. Nc3 {[%clk 0:02:58.3]} 13... Bg6 {[%clk 0:03:13]} 14. Nh4 {[%clk
0:02:56]} 14... Bh5 {[%clk 0:03:10.5]} 15. Nf3 {[%clk 0:02:44.9]} 15... Bg6
{[%clk 0:03:08.2]} 16. Bf4 {[%clk 0:02:39.6]} 16... Rc8 {[%clk 0:03:03.8]} 17.
Ne5 {[%clk 0:02:17.1]} 17... Qb6 {[%clk 0:02:47.7]} 18. a4 {[%clk 0:02:12.9]}
18... Nxe5 {[%clk 0:02:46.7]} 19. Bxe5 {[%clk 0:02:12.2]} 19... Ng4 {[%clk
0:02:20.1]} 20. Bf4 {[%clk 0:01:57.3]} 20... c5 {[%clk 0:02:20.1]} 21. d5 {[%clk
0:01:57.7]} 21... c4 {[%clk 0:02:21.6]} 22. e3 {[%clk 0:01:25.1]} 22... e5
{[%clk 0:02:19.3]} 23. d6 {[%clk 0:01:13.3]} 23... Bxd6 {[%clk 0:02:19.2]} 24.
Bg5 {[%clk 0:01:14.2]} 24... f6 {[%clk 0:02:12.4]} 25. axb5 {[%clk 0:01:06.6]}
25... axb5 {[%clk 0:02:14.3]} 26. Bh4 {[%clk 0:00:47.7]} 26... Bc5 {[%clk
0:02:10.4]} 27. Nd5 {[%clk 0:00:36.7]} 27... Qb8 {[%clk 0:02:10.4]} 28. Ra6
{[%clk 0:00:26.3]} 28... Kh8 {[%clk 0:01:26.7]} 29. h3 {[%clk 0:00:26.2]} 29...
Nh6 {[%clk 0:01:28]} 30. Nxf6 {[%clk 0:00:23.6]} 30... gxf6 {[%clk 0:01:27.8]}
31. Bxf6+ {[%clk 0:00:25.5]} 31... Rxf6 {[%clk 0:01:29.3]} 32. Rxf6 {[%clk
0:00:27]} 32... Bf8 {[%clk 0:01:22.1]} 33. Qd2 {[%clk 0:00:24.7]} 33... Bd3
{[%clk 0:01:18.9]} 34. Qa5 {[%clk 0:00:21.9]} 34... b4 {[%clk 0:01:07.7]} 35.
Ra1 {[%clk 0:00:17.1]} 35... Ng8 {[%clk 0:01:05.9]} 36. Ra6 {[%clk 0:00:11.4]}
36... c3 {[%clk 0:00:48.8]} 37. Ra8 {[%clk 0:00:12.5]} 37... Qxa8 {[%clk
0:00:49.7]} 38. Bxa8 {[%clk 0:00:12.6]} 38... cxb2 {[%clk 0:00:51]} 39. Kh2
{[%clk 0:00:03.4]} 39... Rc1 {[%clk 0:00:43.5]} 40. Qxe5+ {[%clk 0:00:02.3]}
40... Bg7 {[%clk 0:00:44.7]} 41. Qe8 {[%clk 0:00:03.6]} 41... bxa1=Q {[%clk
0:00:39.6]} 42. Bd5 {[%clk 0:00:05.2]} 42... Rh1+ {[%clk 0:00:41.2]} 43. Bxh1
{[%clk 0:00:06.4]} 43... Qb2 {[%clk 0:00:37]} 44. Qf7 {[%clk 0:00:05.9]} 44...
Qf6 {[%clk 0:00:37.3]} 0-1